[Event "Titled Tuesday Blitz July 4 Late 2023"]
[White "Vasques, Antonio Pedro Freixial"]
[Black "Yeritsyan, Hayk"]
[WhiteFideId "1908332"]
[BlackFideId "13307320"]
[WhiteElo "2331"]
[BlackElo "2483"]
[Result "0-1"]
[Round "4"]
[TimeControl "180+2"]
[Date "2023.07.04"]
[WhiteClock "0:00:20"]
[BlackClock "0:00:28"]
[Board "127"]

1. Nf3 {[%clk 0:02:48]}  d5 {[%clk 0:02:59]} 2. d4 {[%clk 0:02:44]}  Nf6 {[%clk 0:02:58]} 3. c4 {[%clk 0:02:39]}  e6 {[%clk 0:02:58]} 4. Nc3 {[%clk 0:02:37]}  dxc4 {[%clk 0:02:58]} 5. e3 {[%clk 0:02:18]}  a6 {[%clk 0:02:58]} 6. Bxc4 {[%clk 0:02:11]}  b5 {[%clk 0:02:56]} 7. Bd3 {[%clk 0:01:57]}  Bb7 {[%clk 0:02:55]} 8. O-O {[%clk 0:01:58]}  Be7 {[%clk 0:02:55]} 9. Bd2 {[%clk 0:01:57]}  Nbd7 {[%clk 0:02:55]} 10. a4 {[%clk 0:01:57]}  b4 {[%clk 0:02:54]} 11. Na2 {[%clk 0:01:58]}  c5 {[%clk 0:02:51]} 12. dxc5 {[%clk 0:01:53]}  Nxc5 {[%clk 0:02:51]} 13. Bc4 {[%clk 0:01:53]}  a5 {[%clk 0:02:18]} 14. Bb5+ {[%clk 0:01:52]}  Kf8 {[%clk 0:02:16]} 15. Qe2 {[%clk 0:01:42]}  Qb6 {[%clk 0:01:43]} 16. Ne5 {[%clk 0:01:23]}  g6 {[%clk 0:01:28]} 17. Nc4 {[%clk 0:01:05]}  Qa7 {[%clk 0:01:21]} 18. Rad1 {[%clk 0:00:53]}  Kg7 {[%clk 0:01:19]} 19. Nc1 {[%clk 0:00:50]}  Rhd8 {[%clk 0:01:16]} 20. f3 {[%clk 0:00:35]}  Rac8 {[%clk 0:01:12]} 21. Kh1 {[%clk 0:00:34]}  Bd5 {[%clk 0:00:55]} 22. e4 {[%clk 0:00:33]}  Bxc4 {[%clk 0:00:53]} 23. Bxc4 {[%clk 0:00:34]}  Nxa4 {[%clk 0:00:51]} 24. Be3 {[%clk 0:00:34]}  Qc7 {[%clk 0:00:43]} 25. Bb5 {[%clk 0:00:29]}  Nc5 {[%clk 0:00:36]} 26. Nd3 {[%clk 0:00:26]}  Nxd3 {[%clk 0:00:35]} 27. Rxd3 {[%clk 0:00:27]}  Rxd3 {[%clk 0:00:35]} 28. Bxd3 {[%clk 0:00:27]}  a4 {[%clk 0:00:33]} 29. Rc1 {[%clk 0:00:20]}  Qxc1+ {[%clk 0:00:28]} 0-1


[Site "https://www.chess.com"]

[Event "Titled Tuesday Blitz July 4 Late 2023"]
[White "Korpics, Zsolt"]
[Black "Avila Rodriguez, Joshua Ad"]
[WhiteFideId "705241"]
[BlackFideId "5126444"]
[WhiteElo "2328"]
[BlackElo "2478"]
[Result "0-1"]
[Round "4"]
[TimeControl "180+2"]
[Date "2023.07.04"]
[WhiteClock "0:00:07"]
[BlackClock "0:00:09"]
[Board "128"]

1. e4 {[%clk 0:03:00]}  c5 {[%clk 0:02:59]} 2. Nf3 {[%clk 0:03:00]}  d6 {[%clk 0:03:00]} 3. d4 {[%clk 0:03:00]}  cxd4 {[%clk 0:03:00]} 4. Nxd4 {[%clk 0:03:00]}  Nf6 {[%clk 0:03:01]} 5. Nc3 {[%clk 0:03:00]}  a6 {[%clk 0:03:01]} 6. h3 {[%clk 0:03:00]}  e5 {[%clk 0:02:59]} 7. Nde2 {[%clk 0:03:00]}  h5 {[%clk 0:02:57]} 8. g3 {[%clk 0:02:59]}  Be7 {[%clk 0:02:52]} 9. Bg2 {[%clk 0:02:59]}  b5 {[%clk 0:02:52]} 10. O-O {[%clk 0:02:53]}  Bb7 {[%clk 0:02:45]} 11. a4 {[%clk 0:02:50]}  b4 {[%clk 0:02:42]} 12. Nd5 {[%clk 0:02:50]}  Nxd5 {[%clk 0:02:39]} 13. exd5 {[%clk 0:02:51]}  O-O {[%clk 0:02:38]} 14. c3 {[%clk 0:02:49]}  a5 {[%clk 0:02:26]} 15. Qb3 {[%clk 0:02:46]}  Ba6 {[%clk 0:01:43]} 16. Re1 {[%clk 0:02:46]}  bxc3 {[%clk 0:01:26]} 17. Nxc3 {[%clk 0:02:44]}  Nd7 {[%clk 0:01:27]} 18. Qd1 {[%clk 0:02:31]}  Rb8 {[%clk 0:01:24]} 19. Qxh5 {[%clk 0:02:28]}  Nc5 {[%clk 0:01:21]} 20. Ne4 {[%clk 0:02:21]}  Nb3 {[%clk 0:01:17]} 21. Ng5 {[%clk 0:01:55]}  Bd3 {[%clk 0:00:47]} 22. Re4 {[%clk 0:01:37]}  Bxg5 {[%clk 0:00:43]} 23. Bxg5 {[%clk 0:01:36]}  f6 {[%clk 0:00:43]} 24. Rd1 {[%clk 0:01:00]}  Bc2 {[%clk 0:00:43]} 25. Bh6 {[%clk 0:00:44]}  Qe8 {[%clk 0:00:12]} 26. Qg4 {[%clk 0:00:39]}  Qf7 {[%clk 0:00:12]} 27. Qh4 {[%clk 0:00:12]}  f5 {[%clk 0:00:06]} 28. Re2 {[%clk 0:00:03]}  Bxd1 {[%clk 0:00:05]} 29. Re1 {[%clk 0:00:03]}  Bc2 {[%clk 0:00:04]} 30. Bg5 {[%clk 0:00:03]}  Nd4 {[%clk 0:00:03]} 31. g4 {[%clk 0:00:03]}  fxg4 {[%clk 0:00:02]} 32. Be4 {[%clk 0:00:03]}  Qxf2+ {[%clk 0:00:01]} 33. Qxf2 {[%clk 0:00:02]}  Rxf2 {[%clk 0:00:02]} 34. Kxf2 {[%clk 0:00:03]}  Bxe4 {[%clk 0:00:03]} 35. Rxe4 {[%clk 0:00:03]}  Rxb2+ {[%clk 0:00:03]} 36. Kg3 {[%clk 0:00:04]}  gxh3 {[%clk 0:00:04]} 37. Kxh3 {[%clk 0:00:04]}  Rb4 {[%clk 0:00:04]} 38. Kg4 {[%clk 0:00:03]}  Rxa4 {[%clk 0:00:03]} 39. Be3 {[%clk 0:00:04]}  Ra3 {[%clk 0:00:02]} 40. Bxd4 {[%clk 0:00:03]}  Ra4 {[%clk 0:00:02]} 41. Kf5 {[%clk 0:00:04]}  Rxd4 {[%clk 0:00:02]} 42. Re3 {[%clk 0:00:03]}  a4 {[%clk 0:00:02]} 43. Ra3 {[%clk 0:00:03]}  Rxd5 {[%clk 0:00:02]} 44. Rxa4 {[%clk 0:00:03]}  Rd4 {[%clk 0:00:03]} 45. Ke6 {[%clk 0:00:04]}  Kh7 {[%clk 0:00:03]} 46. Ra3 {[%clk 0:00:03]}  Kg6 {[%clk 0:00:04]} 47. Rg3+ {[%clk 0:00:03]}  Kh5 {[%clk 0:00:04]} 48. Kf5 {[%clk 0:00:04]}  Kh4 {[%clk 0:00:04]} 49. Rxg7 {[%clk 0:00:03]}  Rf4+ {[%clk 0:00:05]} 50. Ke6 {[%clk 0:00:03]}  Rg4 {[%clk 0:00:03]} 51. Rh7+ {[%clk 0:00:02]}  Kg3 {[%clk 0:00:04]} 52. Kxd6 {[%clk 0:00:02]}  e4 {[%clk 0:00:04]} 53. Ke5 {[%clk 0:00:03]}  e3 {[%clk 0:00:04]} 54. Kd5 {[%clk 0:00:03]}  e2 {[%clk 0:00:04]} 55. Re7 {[%clk 0:00:04]}  Kf2 {[%clk 0:00:04]} 56. Ke5 {[%clk 0:00:04]}  e1=Q+ {[%clk 0:00:04]} 57. Kf6 {[%clk 0:00:04]}  Qxe7+ {[%clk 0:00:04]} 58. Kxe7 {[%clk 0:00:05]}  Kf3 {[%clk 0:00:05]} 59. Ke6 {[%clk 0:00:04]}  Kf4 {[%clk 0:00:06]} 60. Kf6 {[%clk 0:00:05]}  Rh4 {[%clk 0:00:06]} 61. Kg6 {[%clk 0:00:05]}  Rh3 {[%clk 0:00:06]} 62. Kf6 {[%clk 0:00:05]}  Rh6+ {[%clk 0:00:05]} 63. Kg7 {[%clk 0:00:06]}  Kg5 {[%clk 0:00:05]} 64. Kf7 {[%clk 0:00:06]}  Kf5 {[%clk 0:00:06]} 65. Kg7 {[%clk 0:00:06]}  Rh5 {[%clk 0:00:07]} 66. Kf7 {[%clk 0:00:06]}  Rh7+ {[%clk 0:00:07]} 67. Kg8 {[%clk 0:00:07]}  Kg6 {[%clk 0:00:07]} 68. Kf8 {[%clk 0:00:07]}  Kf6 {[%clk 0:00:08]} 69. Kg8 {[%clk 0:00:07]}  Rh6 {[%clk 0:00:09]} 70. Kf8 {[%clk 0:00:07]}  Rh8# {[%clk 0:00:09]} 0-1


[Site "https://www.chess.com"]

[Event "Titled Tuesday Blitz July 4 Late 2023"]
[White "Lach, Aleksandra"]
[Black "Gomez Barrera, Javiera Belen"]
[WhiteFideId "1134299"]
[BlackFideId "3418723"]
[WhiteElo "2326"]
[BlackElo "2476"]
[Result "1-0"]
[Round "4"]
[TimeControl "180+2"]
[Date "2023.07.04"]
[WhiteClock "0:00:07"]
[BlackClock "0:00:09"]
[Board "129"]

1. c4 {[%clk 0:02:58]}  Nf6 {[%clk 0:02:55]} 2. Nc3 {[%clk 0:02:57]}  e5 {[%clk 0:02:48]} 3. g3 {[%clk 0:02:56]}  Nc6 {[%clk 0:02:47]} 4. Bg2 {[%clk 0:02:56]}  Bb4 {[%clk 0:02:46]} 5. Nd5 {[%clk 0:02:52]}  O-O {[%clk 0:02:46]} 6. Nxb4 {[%clk 0:02:46]}  Nxb4 {[%clk 0:02:46]} 7. d3 {[%clk 0:02:42]}  d5 {[%clk 0:02:45]} 8. a3 {[%clk 0:02:39]}  Nc6 {[%clk 0:02:45]} 9. cxd5 {[%clk 0:02:39]}  Nxd5 {[%clk 0:02:46]} 10. Nf3 {[%clk 0:02:39]}  Bg4 {[%clk 0:02:43]} 11. O-O {[%clk 0:02:39]}  Qd7 {[%clk 0:02:41]} 12. b4 {[%clk 0:02:31]}  a6 {[%clk 0:02:31]} 13. Bb2 {[%clk 0:02:30]}  Rae8 {[%clk 0:02:30]} 14. Qb3 {[%clk 0:02:28]}  Nb6 {[%clk 0:02:26]} 15. Rac1 {[%clk 0:02:26]}  Be6 {[%clk 0:02:23]} 16. Qc2 {[%clk 0:02:21]}  Bh3 {[%clk 0:02:23]} 17. Qb3 {[%clk 0:02:06]}  Bxg2 {[%clk 0:02:22]} 18. Kxg2 {[%clk 0:02:07]}  Qe6 {[%clk 0:02:17]} 19. Qxe6 {[%clk 0:01:40]}  Rxe6 {[%clk 0:02:18]} 20. Nd2 {[%clk 0:01:41]}  f6 {[%clk 0:02:15]} 21. Nb3 {[%clk 0:01:39]}  Nd7 {[%clk 0:02:11]} 22. a4 {[%clk 0:01:31]}  Rc8 {[%clk 0:01:42]} 23. b5 {[%clk 0:01:18]}  axb5 {[%clk 0:01:43]} 24. axb5 {[%clk 0:01:19]}  Na7 {[%clk 0:01:39]} 25. Na5 {[%clk 0:01:07]}  b6 {[%clk 0:01:39]} 26. Nc6 {[%clk 0:01:01]}  Nxb5 {[%clk 0:01:38]} 27. Rc2 {[%clk 0:00:47]}  Nc5 {[%clk 0:01:38]} 28. Nb4 {[%clk 0:00:48]}  Nd4 {[%clk 0:01:34]} 29. Bxd4 {[%clk 0:00:42]}  exd4 {[%clk 0:01:35]} 30. Ra2 {[%clk 0:00:43]}  Rce8 {[%clk 0:01:34]} 31. Kf3 {[%clk 0:00:42]}  Nd7 {[%clk 0:01:29]} 32. Nd5 {[%clk 0:00:41]}  Ne5+ {[%clk 0:01:11]} 33. Kg2 {[%clk 0:00:41]}  Ng4 {[%clk 0:00:58]} 34. h3 {[%clk 0:00:36]}  Nh6 {[%clk 0:00:57]} 35. Nxc7 {[%clk 0:00:29]}  Rxe2 {[%clk 0:00:57]} 36. Rxe2 {[%clk 0:00:28]}  Rxe2 {[%clk 0:00:58]} 37. Rb1 {[%clk 0:00:27]}  Rd2 {[%clk 0:00:55]} 38. Rb3 {[%clk 0:00:20]}  Nf5 {[%clk 0:00:54]} 39. Kf3 {[%clk 0:00:18]}  Nd6 {[%clk 0:00:54]} 40. Nd5 {[%clk 0:00:17]}  b5 {[%clk 0:00:52]} 41. Ne7+ {[%clk 0:00:16]}  Kf7 {[%clk 0:00:51]} 42. Nc6 {[%clk 0:00:17]}  Nb7 {[%clk 0:00:25]} 43. Rxb5 {[%clk 0:00:14]}  Rxd3+ {[%clk 0:00:20]} 44. Ke2 {[%clk 0:00:14]}  Nd6 {[%clk 0:00:21]} 45. Rd5 {[%clk 0:00:13]}  Ke6 {[%clk 0:00:18]} 46. Rxd4 {[%clk 0:00:09]}  Rxd4 {[%clk 0:00:17]} 47. Nxd4+ {[%clk 0:00:09]}  Kd5 {[%clk 0:00:17]} 48. Nf3 {[%clk 0:00:10]}  Ke4 {[%clk 0:00:17]} 49. Nd2+ {[%clk 0:00:10]}  Kd4 {[%clk 0:00:18]} 50. Kf3 {[%clk 0:00:11]}  Kd3 {[%clk 0:00:12]} 51. Nf1 {[%clk 0:00:11]}  Ne4 {[%clk 0:00:12]} 52. Ne3 {[%clk 0:00:10]}  Ng5+ {[%clk 0:00:11]} 53. Kg2 {[%clk 0:00:10]}  Ke4 {[%clk 0:00:12]} 54. Ng4 {[%clk 0:00:09]}  h5 {[%clk 0:00:11]} 55. Ne3 {[%clk 0:00:10]}  Nf3 {[%clk 0:00:10]} 56. Nf1 {[%clk 0:00:10]}  Ne1+ {[%clk 0:00:10]} 57. Kg1 {[%clk 0:00:09]}  Nf3+ {[%clk 0:00:08]} 58. Kg2 {[%clk 0:00:10]}  g5 {[%clk 0:00:06]} 59. g4 {[%clk 0:00:10]}  h4 {[%clk 0:00:07]} 60. Ne3 {[%clk 0:00:09]}  Ne1+ {[%clk 0:00:06]} 61. Kf1 {[%clk 0:00:09]}  Nd3 {[%clk 0:00:07]} 62. Nf5 {[%clk 0:00:09]}  Nf4 {[%clk 0:00:07]} 63. Nd6+ {[%clk 0:00:07]}  Kf3 {[%clk 0:00:07]} 64. Ne8 {[%clk 0:00:07]}  Nxh3 {[%clk 0:00:07]} 65. Nxf6 {[%clk 0:00:07]}  Nf4 {[%clk 0:00:07]} 66. Nh7 {[%clk 0:00:07]}  Kxg4 {[%clk 0:00:08]} 67. Nf6+ {[%clk 0:00:07]}  Kf3 {[%clk 0:00:08]} 68. Nh7 {[%clk 0:00:08]}  g4 {[%clk 0:00:09]} 69. Ng5# {[%clk 0:00:07]} 1-0


[Site "https://www.chess.com"]

[Event "Titled Tuesday Blitz July 4 Late 2023"]
[White "Garcia Cuenca, Victor"]
[Black "Shapiro, Viktor"]
[WhiteFideId "2250829"]
[BlackFideId "4175700"]
[WhiteElo "2316"]
[BlackElo "2459"]
[Result "1/2-1/2"]
[Round "4"]
[TimeControl "180+2"]
[Date "2023.07.04"]
[WhiteClock "0:00:10"]
[BlackClock "0:00:14"]
[Board "131"]

1. Nf3 {[%clk 0:03:00]}  Nf6 {[%clk 0:02:59]} 2. e3 {[%clk 0:03:01]}  d5 {[%clk 0:02:59]} 3. d4 {[%clk 0:03:01]}  Bf5 {[%clk 0:02:58]} 4. c4 {[%clk 0:03:01]}  c6 {[%clk 0:02:58]} 5. Nc3 {[%clk 0:03:02]}  e6 {[%clk 0:02:58]} 6. Qb3 {[%clk 0:03:01]}  Qb6 {[%clk 0:02:57]} 7. Bd2 {[%clk 0:02:53]}  Nbd7 {[%clk 0:02:53]} 8. Be2 {[%clk 0:02:47]}  Be7 {[%clk 0:02:42]} 9. O-O {[%clk 0:02:47]}  h6 {[%clk 0:02:42]} 10. h3 {[%clk 0:02:45]}  O-O {[%clk 0:02:42]} 11. Rfc1 {[%clk 0:02:42]}  Rfe8 {[%clk 0:02:37]} 12. Na4 {[%clk 0:02:41]}  Qc7 {[%clk 0:02:25]} 13. Bb4 {[%clk 0:02:40]}  dxc4 {[%clk 0:02:22]} 14. Bxc4 {[%clk 0:02:29]}  Bxb4 {[%clk 0:02:10]} 15. Qxb4 {[%clk 0:02:30]}  Rac8 {[%clk 0:02:08]} 16. Bb3 {[%clk 0:02:14]}  Qb8 {[%clk 0:01:59]} 17. Nc5 {[%clk 0:01:54]}  b6 {[%clk 0:01:46]} 18. Nxd7 {[%clk 0:01:48]}  Nxd7 {[%clk 0:01:46]} 19. Qe1 {[%clk 0:01:41]}  Be4 {[%clk 0:01:41]} 20. Nd2 {[%clk 0:01:40]}  Bd5 {[%clk 0:01:41]} 21. Bc2 {[%clk 0:01:40]}  e5 {[%clk 0:01:37]} 22. Bf5 {[%clk 0:01:32]}  Be6 {[%clk 0:01:35]} 23. Bxe6 {[%clk 0:01:27]}  Rxe6 {[%clk 0:01:34]} 24. Nf3 {[%clk 0:01:22]}  c5 {[%clk 0:01:28]} 25. d5 {[%clk 0:01:20]}  Ree8 {[%clk 0:01:28]} 26. e4 {[%clk 0:01:20]}  c4 {[%clk 0:01:24]} 27. Qb4 {[%clk 0:01:17]}  b5 {[%clk 0:01:23]} 28. a4 {[%clk 0:01:13]}  a6 {[%clk 0:01:23]} 29. axb5 {[%clk 0:01:10]}  Qxb5 {[%clk 0:01:21]} 30. Qc3 {[%clk 0:01:00]}  Rc5 {[%clk 0:01:05]} 31. Nd2 {[%clk 0:00:55]}  Rec8 {[%clk 0:01:04]} 32. Ra2 {[%clk 0:00:42]}  Qb7 {[%clk 0:00:45]} 33. Rca1 {[%clk 0:00:40]}  Nb8 {[%clk 0:00:42]} 34. Qxe5 {[%clk 0:00:36]}  Qb4 {[%clk 0:00:36]} 35. Qc3 {[%clk 0:00:35]}  Qxc3 {[%clk 0:00:36]} 36. bxc3 {[%clk 0:00:36]}  f5 {[%clk 0:00:34]} 37. f3 {[%clk 0:00:35]}  fxe4 {[%clk 0:00:34]} 38. fxe4 {[%clk 0:00:36]}  Re8 {[%clk 0:00:30]} 39. Ra4 {[%clk 0:00:35]}  Rec8 {[%clk 0:00:24]} 40. Rb4 {[%clk 0:00:36]}  a5 {[%clk 0:00:22]} 41. Rb7 {[%clk 0:00:31]}  Na6 {[%clk 0:00:16]} 42. Ra4 {[%clk 0:00:30]}  Nc7 {[%clk 0:00:16]} 43. d6 {[%clk 0:00:28]}  Ne6 {[%clk 0:00:15]} 44. d7 {[%clk 0:00:24]}  Rd8 {[%clk 0:00:15]} 45. Rxc4 {[%clk 0:00:22]}  Kf7 {[%clk 0:00:14]} 46. Ra4 {[%clk 0:00:12]}  Rxc3 {[%clk 0:00:13]} 47. Nf3 {[%clk 0:00:12]}  Rc5 {[%clk 0:00:12]} 48. Ra7 {[%clk 0:00:10]}  Ke7 {[%clk 0:00:12]} 49. R4xa5 {[%clk 0:00:10]}  Rxa5 {[%clk 0:00:12]} 50. Rxa5 {[%clk 0:00:11]}  Rxd7 {[%clk 0:00:13]} 51. Ne5 {[%clk 0:00:10]}  Rc7 {[%clk 0:00:12]} 52. Ra6 {[%clk 0:00:10]}  Kf6 {[%clk 0:00:12]} 53. Nf3 {[%clk 0:00:08]}  Ke7 {[%clk 0:00:12]} 54. Nh4 {[%clk 0:00:07]}  Kf7 {[%clk 0:00:11]} 55. Nf5 {[%clk 0:00:08]}  h5 {[%clk 0:00:11]} 56. Ng3 {[%clk 0:00:06]}  g6 {[%clk 0:00:11]} 57. e5 {[%clk 0:00:06]}  Rc4 {[%clk 0:00:11]} 58. Ra7+ {[%clk 0:00:04]}  Nc7 {[%clk 0:00:11]} 59. Ne2 {[%clk 0:00:02]}  Ke6 {[%clk 0:00:11]} 60. Kf2 {[%clk 0:00:01]}  Kxe5 {[%clk 0:00:11]} 61. Ng3 {[%clk 0:00:02]}  Ne6 {[%clk 0:00:10]} 62. Ne2 {[%clk 0:00:03]}  Rc2 {[%clk 0:00:10]} 63. Ra5+ {[%clk 0:00:04]}  Kf6 {[%clk 0:00:10]} 64. Ra6 {[%clk 0:00:03]}  Rc5 {[%clk 0:00:11]} 65. Rb6 {[%clk 0:00:02]}  Rd5 {[%clk 0:00:10]} 66. Rxe6+ {[%clk 0:00:01]}  Kxe6 {[%clk 0:00:10]} 67. Nf4+ {[%clk 0:00:02]}  Ke5 {[%clk 0:00:11]} 68. Nxd5 {[%clk 0:00:02]}  Kxd5 {[%clk 0:00:12]} 69. Kg3 {[%clk 0:00:03]}  Ke5 {[%clk 0:00:12]} 70. Kh4 {[%clk 0:00:04]}  Kf6 {[%clk 0:00:13]} 71. g4 {[%clk 0:00:05]}  hxg4 {[%clk 0:00:13]} 72. hxg4 {[%clk 0:00:05]}  Kf7 {[%clk 0:00:11]} 73. Kg3 {[%clk 0:00:06]}  Kf6 {[%clk 0:00:11]} 74. Kf4 {[%clk 0:00:07]}  g5+ {[%clk 0:00:11]} 75. Ke4 {[%clk 0:00:07]}  Ke6 {[%clk 0:00:12]} 76. Kd4 {[%clk 0:00:07]}  Kd6 {[%clk 0:00:12]} 77. Ke4 {[%clk 0:00:08]}  Ke6 {[%clk 0:00:13]} 78. Kd4 {[%clk 0:00:09]}  Kd6 {[%clk 0:00:13]} 79. Ke4 {[%clk 0:00:10]}  Ke6 {[%clk 0:00:14]} 1/2-1/2


[Site "https://www.chess.com"]

[Event "Titled Tuesday Blitz July 4 Late 2023"]
[White "Nunez V, Gustavo Eduardo"]
[Black "Rodriguez Santiago, Jaime"]
[WhiteFideId "4403690"]
[BlackFideId "3100898"]
[WhiteElo "2454"]
[BlackElo "2314"]
[Result "0-1"]
[Round "4"]
[TimeControl "180+2"]
[Date "2023.07.04"]
[WhiteClock "0:00:08"]
[BlackClock "0:00:12"]
[Board "132"]

1. e4 {[%clk 0:02:57]}  c6 {[%clk 0:02:59]} 2. d3 {[%clk 0:02:57]}  d5 {[%clk 0:02:59]} 3. Nd2 {[%clk 0:02:58]}  dxe4 {[%clk 0:02:57]} 4. dxe4 {[%clk 0:02:59]}  Nf6 {[%clk 0:02:53]} 5. g3 {[%clk 0:02:58]}  Bg4 {[%clk 0:02:53]} 6. Be2 {[%clk 0:02:54]}  Bxe2 {[%clk 0:02:52]} 7. Qxe2 {[%clk 0:02:55]}  e6 {[%clk 0:02:51]} 8. Ngf3 {[%clk 0:02:53]}  Nbd7 {[%clk 0:02:49]} 9. O-O {[%clk 0:02:53]}  Be7 {[%clk 0:02:47]} 10. e5 {[%clk 0:02:49]}  Nd5 {[%clk 0:02:46]} 11. c4 {[%clk 0:02:49]}  Nc7 {[%clk 0:02:37]} 12. Ne4 {[%clk 0:02:46]}  O-O {[%clk 0:02:35]} 13. Be3 {[%clk 0:02:46]}  Qc8 {[%clk 0:02:27]} 14. Rfd1 {[%clk 0:02:44]}  Ne8 {[%clk 0:02:09]} 15. Rd3 {[%clk 0:02:38]}  Qc7 {[%clk 0:02:05]} 16. Rad1 {[%clk 0:02:14]}  Nxe5 {[%clk 0:01:58]} 17. Nxe5 {[%clk 0:02:14]}  Qxe5 {[%clk 0:01:58]} 18. Bf4 {[%clk 0:02:10]}  Qa5 {[%clk 0:01:55]} 19. Rd7 {[%clk 0:02:08]}  Bf6 {[%clk 0:01:35]} 20. Rxb7 {[%clk 0:02:07]}  Qxa2 {[%clk 0:01:30]} 21. Rdd7 {[%clk 0:02:03]}  a5 {[%clk 0:01:26]} 22. Nc5 {[%clk 0:01:56]}  Qb1+ {[%clk 0:01:12]} 23. Kg2 {[%clk 0:01:53]}  Qf5 {[%clk 0:01:12]} 24. Ne4 {[%clk 0:01:26]}  e5 {[%clk 0:01:01]} 25. Bd2 {[%clk 0:01:15]}  Bd8 {[%clk 0:00:52]} 26. g4 {[%clk 0:01:03]}  Qg6 {[%clk 0:00:48]} 27. Ng3 {[%clk 0:01:02]}  Nf6 {[%clk 0:00:47]} 28. Rd6 {[%clk 0:00:58]}  Qxg4 {[%clk 0:00:40]} 29. f3 {[%clk 0:00:50]}  Qc8 {[%clk 0:00:37]} 30. Rb3 {[%clk 0:00:48]}  a4 {[%clk 0:00:37]} 31. Re3 {[%clk 0:00:41]}  Re8 {[%clk 0:00:33]} 32. Bc3 {[%clk 0:00:34]}  Qb8 {[%clk 0:00:17]} 33. Rxc6 {[%clk 0:00:26]}  Bc7 {[%clk 0:00:17]} 34. Ne4 {[%clk 0:00:17]}  Nxe4 {[%clk 0:00:16]} 35. fxe4 {[%clk 0:00:15]}  a3 {[%clk 0:00:17]} 36. bxa3 {[%clk 0:00:13]}  Rxa3 {[%clk 0:00:17]} 37. Bd2 {[%clk 0:00:11]}  Ra2 {[%clk 0:00:17]} 38. Rc5 {[%clk 0:00:09]}  Bb6 {[%clk 0:00:17]} 39. Rb5 {[%clk 0:00:09]}  Bxe3 {[%clk 0:00:16]} 40. Rxb8 {[%clk 0:00:09]}  Rxb8 {[%clk 0:00:16]} 41. Qxe3 {[%clk 0:00:09]}  Rbb2 {[%clk 0:00:16]} 42. Kf3 {[%clk 0:00:09]}  Rxd2 {[%clk 0:00:16]} 43. Qb6 {[%clk 0:00:09]}  h6 {[%clk 0:00:15]} 44. Qb8+ {[%clk 0:00:09]}  Kh7 {[%clk 0:00:14]} 45. Qxe5 {[%clk 0:00:10]}  Rd3+ {[%clk 0:00:12]} 46. Kg4 {[%clk 0:00:10]}  Rg2+ {[%clk 0:00:12]} 47. Kh4 {[%clk 0:00:09]}  g5+ {[%clk 0:00:12]} 48. Kh5 {[%clk 0:00:08]}  Rh3# {[%clk 0:00:12]} 0-1


[Site "https://www.chess.com"]

[Event "Titled Tuesday Blitz July 4 Late 2023"]
[White "Gerbelli Neto, Eduardo"]
[Black "QuiesPrecatio"]
[WhiteFideId "2103281"]
[WhiteElo "2302"]
[BlackElo "2452"]
[Result "1-0"]
[Round "4"]
[TimeControl "180+2"]
[Date "2023.07.04"]
[WhiteClock "0:02:39"]
[BlackClock "0:02:01"]
[Board "133"]

1. e4 {[%clk 0:03:00]}  c6 {[%clk 0:02:59]} 2. d4 {[%clk 0:03:00]}  d5 {[%clk 0:03:00]} 3. exd5 {[%clk 0:03:01]}  cxd5 {[%clk 0:03:00]} 4. c4 {[%clk 0:03:01]}  Nf6 {[%clk 0:03:00]} 5. Nc3 {[%clk 0:03:01]}  Nc6 {[%clk 0:03:00]} 6. Nf3 {[%clk 0:03:01]}  Bg4 {[%clk 0:02:59]} 7. cxd5 {[%clk 0:03:01]}  Nxd5 {[%clk 0:03:00]} 8. Qb3 {[%clk 0:03:01]}  Bxf3 {[%clk 0:03:01]} 9. gxf3 {[%clk 0:03:01]}  e6 {[%clk 0:03:01]} 10. Qxb7 {[%clk 0:03:00]}  Nxd4 {[%clk 0:03:02]} 11. Bb5+ {[%clk 0:03:00]}  Nxb5 {[%clk 0:03:03]} 12. Qc6+ {[%clk 0:03:00]}  Ke7 {[%clk 0:03:03]} 13. Qxb5 {[%clk 0:03:01]}  Qd7 {[%clk 0:03:04]} 14. Nxd5+ {[%clk 0:02:59]}  Qxd5 {[%clk 0:03:01]} 15. Bg5+ {[%clk 0:02:59]}  f6 {[%clk 0:03:00]} 16. Qxd5 {[%clk 0:03:00]}  exd5 {[%clk 0:03:01]} 17. Be3 {[%clk 0:03:00]}  Ke6 {[%clk 0:03:01]} 18. O-O-O {[%clk 0:03:01]}  a6 {[%clk 0:02:13]} 19. Rhe1 {[%clk 0:02:59]}  Kd6 {[%clk 0:02:09]} 20. Bf4+ {[%clk 0:02:55]}  Kc5 {[%clk 0:02:07]} 21. Kb1 {[%clk 0:02:45]}  Rd8 {[%clk 0:02:05]} 22. Re6 {[%clk 0:02:41]}  Bd6 {[%clk 0:02:01]} 23. Rc1+ {[%clk 0:02:39]} 1-0


[Site "https://www.chess.com"]

[Event "Titled Tuesday Blitz July 4 Late 2023"]
[White "Vaglio Munoz, Jaime"]
[Black "Balla, Tamas-Kristof"]
[WhiteFideId "6500145"]
[BlackFideId "1208497"]
[WhiteElo "2300"]
[BlackElo "2451"]
[Result "1-0"]
[Round "4"]
[TimeControl "180+2"]
[Date "2023.07.04"]
[WhiteClock "0:02:16"]
[BlackClock "0:01:19"]
[Board "134"]

1. Nf3 {[%clk 0:03:00]}  c5 {[%clk 0:03:00]} 2. c4 {[%clk 0:03:00]}  Nc6 {[%clk 0:03:00]} 3. b3 {[%clk 0:03:00]}  Nf6 {[%clk 0:02:52]} 4. Bb2 {[%clk 0:03:00]}  g6 {[%clk 0:02:52]} 5. g3 {[%clk 0:03:00]}  Bg7 {[%clk 0:02:53]} 6. Bg2 {[%clk 0:03:00]}  O-O {[%clk 0:02:53]} 7. O-O {[%clk 0:03:00]}  d6 {[%clk 0:02:53]} 8. d3 {[%clk 0:03:00]}  e6 {[%clk 0:02:51]} 9. e4 {[%clk 0:02:59]}  b6 {[%clk 0:02:49]} 10. Nbd2 {[%clk 0:02:58]}  Bb7 {[%clk 0:02:50]} 11. Re1 {[%clk 0:02:57]}  e5 {[%clk 0:02:32]} 12. a3 {[%clk 0:02:55]}  Nd4 {[%clk 0:02:32]} 13. Nxd4 {[%clk 0:02:54]}  exd4 {[%clk 0:02:28]} 14. b4 {[%clk 0:02:54]}  Nd7 {[%clk 0:02:25]} 15. f4 {[%clk 0:02:53]}  f5 {[%clk 0:02:21]} 16. b5 {[%clk 0:02:41]}  Rb8 {[%clk 0:01:54]} 17. a4 {[%clk 0:02:40]}  Nf6 {[%clk 0:01:53]} 18. h3 {[%clk 0:02:34]}  fxe4 {[%clk 0:01:47]} 19. Nxe4 {[%clk 0:02:32]}  Nxe4 {[%clk 0:01:47]} 20. Bxe4 {[%clk 0:02:31]}  Bxe4 {[%clk 0:01:46]} 21. Rxe4 {[%clk 0:02:30]}  d5 {[%clk 0:01:45]} 22. Re6 {[%clk 0:02:29]}  dxc4 {[%clk 0:01:44]} 23. dxc4 {[%clk 0:02:30]}  Qd7 {[%clk 0:01:40]} 24. Qg4 {[%clk 0:02:20]}  Rbe8 {[%clk 0:01:23]} 25. Rae1 {[%clk 0:02:19]}  Rxe6 {[%clk 0:01:23]} 26. Rxe6 {[%clk 0:02:17]}  Qxe6 {[%clk 0:01:19]} 27. Qxe6+ {[%clk 0:02:16]} 1-0


[Site "https://www.chess.com"]